bitfinex-derivatives/quotes_ETHF0:USTF0_20250104
["timestamp","ask_amount","ask_price","bid_price","bid_amount"]
[1735997783117,0.27548,3631.3,3631.1,1.31479]
[1735997783320,6.48908338,3631.4,3631.1,1.0393]
[1735997783825,0.27548,3631.3,3631.1,1.31479]
[1735997785730,0.27547,3631.3,3631.1,1.31479]
[1735997786230,0.27548,3631.2,3631.1,1.0393]
[1735997787525,0.27548,3631.2,3631.1,1.31479]
[1735997787830,0.27548,3631.2,3631.1,1.0393]
[1735997789535,6.48908338,3631.4,3630.5,6.11392338]
[1735997789729,6.48908338,3631.4,3630.9,0.2755]
[1735997789730,0.27549,3631.1,3630.9,0.2755]
[1735997790429,6.48908338,3631.4,3630.6,1.0279]
[1735997790630,0.27549,3631.2,3631.1,0.27549]
[1735997790830,0.27549,3631.2,3630.5,6.11392338]
[1735997791029,0.27549,3631.2,3631.0,0.27549]
[1735997791430,0.27548,3631.3,3630.6,0.96436]
[1735997791633,0.27549,3631.2,3631.0,0.27549]
[1735997791835,4.2718,3631.4,3631.0,0.27549]
[1735997792031,4.2718,3631.4,3630.5,3.2078]
[1735997792032,0.2755,3631.0,3630.5,3.2078]
[1735997792235,0.2755,3631.1,3630.9,0.2755]
[1735997792735,6.48908338,3631.4,3630.9,0.2755]
[1735997792934,0.27549,3631.1,3631.0,0.2755]
[1735997793128,6.48908338,3631.4,3631.0,0.2755]
[1735997793335,0.27549,3631.1,3631.0,0.2755]
[1735997794034,0.27552,3630.8,3630.6,0.27552]
[1735997794234,0.68869,3631.3,3630.6,0.27552]
[1735997794437,0.27552,3630.8,3630.6,0.27552]
[1735997794933,0.27552,3630.7,3630.6,0.27552]
[1735997795134,0.27552,3630.8,3630.6,0.27552]
[1735997795329,0.68869,3631.3,3630.6,0.27552]
[1735997795526,0.27552,3630.8,3630.6,0.27552]
[1735997795730,0.68869,3631.3,3630.6,0.27552]
[1735997795931,0.27552,3630.7,3630.6,0.27552]
[1735997796140,0.68869,3631.3,3630.6,0.27552]
[1735997796442,0.27552,3630.7,3630.6,0.27552]
[1735997796737,0.2755,3631.0,3630.9,0.2755]
[1735997797132,7.50761496,3631.4,3630.5,3.2078]
[1735997797443,7.50761496,3631.4,3630.4,0.68886]
[1735997797444,3.23581496,3631.4,3631.3,0.27547]
[1735997797637,3.2078,3632.4,3631.2,3.2078]
[1735997797638,3.23581496,3631.5,3631.4,0.27547]
[1735997797940,3.23581496,3631.5,3631.4,2.49275338]
[1735997798238,4.31423986,3631.7,3631.6,0.27545]
[1735997798736,4.31423986,3631.7,3631.6,3.48325]
[1735997798934,4.30282482,3632.7,3632.5,0.27538]
[1735997799239,4.02745482,3632.7,3632.6,0.27538]
[1735997800434,5.42508338,3633.7,3632.6,2.21728338]
[1735997800635,6.48578338,3633.7,3633.2,0.27532]
[1735997800938,0.27532,3633.4,3633.2,0.27532]
[1735997801239,0.2753,3633.6,3633.3,0.27532]
[1735997801432,0.2753,3633.6,3632.8,3.2078]
[1735997801630,4.5438,3633.7,3633.4,0.27531]
[1735997801831,1.336,3633.7,3633.4,0.27531]
[1735997802039,1.336,3633.7,3633.5,0.2753]
[1735997802236,1.0607,3633.7,3633.5,0.2753]
[1735997802441,1.0607,3633.7,3632.9,2.21728338]
[1735997802636,1.0607,3633.7,3633.0,1.0557]
[1735997802834,0.2753,3633.6,3633.3,0.27532]
[1735997804042,4.5438,3633.7,3633.1,0.27534]
[1735997804242,4.2685,3633.7,3633.0,1.0557]
[1735997804736,4.5438,3633.7,3633.4,0.27532]
[1735997804937,0.2753,3633.6,3633.2,0.27533]
[1735997805144,0.27531,3633.5,3633.1,0.27533]
[1735997805534,0.27532,3633.4,3633.1,0.27533]
[1735997805942,0.27534,3633.1,3632.8,3.2078]
[1735997806146,1.0109,3633.0,3632.3,3.2078]
[1735997806342,1.0109,3633.0,3632.8,0.27536]
[1735997806543,0.27536,3632.9,3632.6,0.27537]
[1735997806936,0.27536,3632.9,3632.3,3.2078]
[1735997807447,0.27536,3632.9,3632.6,0.27537]
[1735997808345,0.27538,3632.6,3632.4,0.27539]
[1735997808536,3.2078,3632.9,3632.3,3.2078]
[1735997808537,3.24198338,3632.8,3632.3,3.2078]
[1735997808737,0.27538,3632.5,3632.3,3.48319]
[1735997809743,0.2754,3632.3,3632.1,0.27541]
[1735997809946,1.0506,3632.2,3632.1,0.27541]
[1735997811041,1.0506,3632.2,3631.8,3.2078]
[1735997811360,0.27542,3632.0,3631.9,0.27543]
[1735997811545,0.27542,3632.1,3631.9,0.27543]
[1735997811850,0.27541,3632.1,3631.9,0.27543]
[1735997812544,0.27541,3632.1,3632.0,0.27542]
[1735997812749,1.32601,3632.2,3632.0,0.27542]
[1735997812941,0.27541,3632.1,3632.0,0.27542]
[1735997814149,0.27541,3632.1,3631.9,0.27543]
[1735997814650,3.26788338,3632.2,3631.4,3.2078]
[1735997814847,0.27544,3631.8,3631.6,0.27545]
[1735997815150,0.27543,3631.9,3631.7,0.27544]
[1735997815349,3.26788338,3632.2,3631.4,3.2078]
[1735997815549,0.27544,3631.8,3631.6,0.27545]
[1735997816146,0.27544,3631.8,3631.4,3.2078]
[1735997816547,0.27544,3631.8,3631.6,0.27545]
[1735997817154,0.27544,3631.8,3631.5,0.27546]
[1735997817349,0.27544,3631.7,3631.4,3.2078]
[1735997817565,0.27546,3631.6,3631.5,0.27546]
[1735997817855,0.27545,3631.6,3631.5,0.27546]
[1735997818357,0.9956,3631.8,3631.4,3.2078]
[1735997818551,1.29626,3631.5,3631.4,3.2078]
[1735997818852,1.0208,3631.5,3631.4,3.48327]
[1735997821046,1.37042,3632.1,3631.9,0.27542]
[1735997821256,1.078,3632.1,3632.0,0.27542]
[1735997823455,3.2078,3633.1,3632.1,0.68854]
[1735997823650,1.0877,3632.9,3632.8,0.27536]
[1735997823851,0.9964,3633.1,3632.5,5.42508338]
[1735997824054,0.9964,3633.1,3633.0,0.27535]
[1735997824259,3.14637823,3633.1,3633.0,0.27535]
[1735997824561,2.14997823,3633.1,3633.0,0.27535]
[1735997824747,2.14997823,3633.1,3632.5,5.42508338]
[1735997824949,2.14997823,3633.1,3632.9,0.27535]
[1735997825351,2.42531823,3633.1,3632.8,0.27536]
[1735997825753,0.27534,3633.1,3632.5,3.2078]
[1735997825955,3.2078,3632.9,3632.4,0.27539]
[1735997826153,2.21728338,3632.8,3631.8,6.48190961]
[1735997826354,1.35867,3632.7,3632.3,0.2754]
[1735997826556,1.0833,3632.7,3632.3,0.2754]
[1735997826758,0.27538,3632.6,3632.3,0.2754]
[1735997827160,0.27539,3632.5,3631.7,3.25868338]
[1735997827554,41.8833,3632.7,3632.2,0.2754]
[1735997828058,1.0833,3632.7,3632.2,0.2754]
[1735997828357,1.0833,3632.7,3631.7,3.25868338]
[1735997828358,0.27538,3632.6,3631.7,3.25868338]
[1735997828554,5.42508338,3632.5,3631.7,1.0414]
[1735997828759,6.51908338,3632.5,3631.6,3.2078]
[1735997829159,0.2754,3632.4,3632.0,0.27542]
[1735997829360,0.2754,3632.3,3632.0,0.27542]
[1735997829862,0.2754,3632.4,3632.0,0.27542]
[1735997830257,0.27539,3632.4,3632.0,0.27542]
[1735997830458,0.2754,3632.3,3632.0,0.27542]
[1735997830658,0.2754,3632.3,3631.9,0.27543]
[1735997830855,1.0053,3632.2,3631.9,0.27543]
[1735997831055,1.0053,3632.2,3632.0,0.27542]
[1735997831956,1.28071,3632.2,3631.9,0.27543]
[1735997832155,1.0053,3632.2,3631.9,0.27543]
[1735997832357,1.0053,3632.2,3632.0,0.27542]
[1735997833060,1.0053,3632.2,3631.6,3.2078]
[1735997833359,1.0053,3632.2,3632.0,0.27542]
[1735997833563,1.0053,3632.2,3632.1,0.27541]
[1735997833766,4.3018,3632.5,3632.3,0.27539]
[1735997834058,1.0833,3632.7,3632.6,0.27538]
[1735997834563,1.0833,3632.7,3632.5,0.27538]
[1735997835166,1.35867,3632.7,3632.5,0.27538]
[1735997835360,1.0833,3632.7,3632.5,0.27538]
[1735997835761,4.203,3632.9,3632.2,1.0849]
[1735997836058,3.2078,3632.9,3632.8,0.27536]
[1735997838368,3.2078,3632.9,3632.2,1.0849]
[1735997838570,3.48316,3632.9,3632.7,0.27537]
[1735997838770,3.2078,3632.9,3632.7,0.27537]
[1735997839163,3.48316,3632.9,3632.7,0.27537]
[1735997839571,3.48316,3632.9,3632.7,0.27536]
[1735997840271,3.48316,3632.9,3632.2,1.77342]
[1735997840666,3.48316,3632.9,3632.8,0.27536]
[1735997841461,3.2078,3632.9,3632.8,0.27536]
[1735997841772,3.48315,3632.9,3632.8,0.27536]
[1735997842572,3.2078,3632.9,3632.8,0.27536]
[1735997844868,2.14997823,3633.2,3633.1,0.27534]
[1735997845675,0.51767823,3633.2,3633.1,0.27534]
[1735997845966,4.3071182,3633.6,3633.5,0.27531]
[1735997846171,4.3071182,3633.6,3633.5,5.70039338]
[1735997846376,2.15904349,3633.7,3633.6,0.2753]
[1735997846572,2.15904349,3633.7,3633.6,1.313]
[1735997847976,1.31735,3634.3,3634.2,0.27526]
[1735997848282,1.0421,3634.3,3634.2,0.27526]
[1735997851874,1.0421,3634.3,3633.9,3.2078]
[1735997852072,1.0421,3634.3,3633.4,6.48190961]
[1735997852370,3.2078,3634.1,3633.8,0.27528]
[1735997852578,40.8,3634.0,3633.8,0.27528]
[1735997853080,0.27528,3633.9,3633.7,0.27529]
[1735997853484,3.2078,3634.1,3633.3,2.21728338]
[1735997853673,3.2078,3633.7,3633.2,3.2078]
[1735997853869,3.2078,3633.7,3633.3,0.27532]
[1735997854075,0.27533,3633.2,3632.9,6.48190961]
[1735997854278,1.26804,3633.1,3633.0,0.27534]
[1735997854576,0.9927,3633.1,3633.0,0.27534]
[1735997855980,0.9927,3633.1,3632.9,0.27535]
[1735997856184,0.27535,3633.0,3632.8,0.27536]
[1735997856480,0.9927,3633.1,3632.5,2.1153]
[1735997856680,0.9927,3633.1,3632.8,0.27535]
[1735997856878,0.27536,3632.9,3632.7,0.27536]
[1735997857375,0.27536,3632.9,3632.8,0.27536]
[1735997857576,0.27537,3632.8,3632.6,0.27537]
[1735997857781,0.27537,3632.7,3632.4,3.2078]
[1735997858282,0.27538,3632.6,3632.5,0.27538]
[1735997858879,3.2078,3632.8,3631.9,3.2078]
[1735997859074,0.2754,3632.4,3632.3,0.2754]
[1735997859383,0.2754,3632.4,3631.9,3.2078]
[1735997859582,1.063,3632.3,3631.9,3.2078]
[1735997859784,1.063,3632.3,3632.2,0.27541]
[1735997860575,1.0047,3632.7,3632.1,2.21728338]
[1735997860777,1.0047,3632.7,3632.6,0.27538]
[1735997861183,1.28007,3632.7,3632.5,0.27538]
[1735997861383,1.28007,3632.7,3631.9,3.2078]
[1735997861384,1.0047,3632.7,3631.9,5.42508338]
[1735997861680,0.27538,3632.6,3632.4,0.27539]
[1735997862587,1.28007,3632.7,3632.5,0.27538]
[1735997862781,1.28007,3632.7,3632.6,0.27538]
[1735997862782,1.0047,3632.7,3632.6,0.27538]
[1735997863388,3.2078,3632.8,3632.3,0.2754]
[1735997863686,3.2078,3632.8,3632.7,0.27537]
[1735997863986,3.2078,3632.8,3632.2,2.21728338]
[1735997864186,3.2078,3632.8,3632.7,0.27537]
[1735997864488,3.2078,3632.8,3632.2,2.21728338]
[1735997864679,0.27537,3632.7,3632.5,0.27538]
[1735997865184,3.2078,3632.8,3631.9,5.42508338]
[1735997865488,3.2078,3632.8,3632.7,0.27537]
[1735997865892,1.35315,3633.0,3632.8,0.27536]
[1735997867492,0.27535,3632.9,3632.7,0.27536]
[1735997868496,4.2856,3633.0,3632.2,3.23028338]
[1735997868892,4.2856,3633.0,3632.9,0.27535]
[1735997869085,4.56095,3633.0,3632.3,0.6885]
[1735997869286,4.56095,3633.0,3632.8,0.27536]
[1735997869796,4.2856,3633.0,3632.8,0.27536]
[1735997869987,4.56095,3633.0,3632.8,0.27536]
[1735997872705,4.2856,3633.0,3632.9,0.27535]
[1735997873601,3.2078,3633.0,3632.9,0.27535]
[1735997873800,0.9868,3633.4,3632.8,2.21728338]
[1735997873995,0.9868,3633.4,3633.3,0.27532]
[1735997876301,1.26212,3633.4,3633.3,0.27532]
[1735997876492,1.26212,3633.4,3633.2,0.27532]
[1735997876692,0.9868,3633.4,3633.3,0.27532]
[1735997876894,1.26212,3633.4,3633.3,0.27532]
[1735997879205,0.9868,3633.4,3633.3,0.27532]
[1735997879400,1.26212,3633.4,3633.3,0.27532]
[1735997880296,0.9868,3633.4,3633.3,0.27532]
[1735997882298,0.9868,3633.4,3632.8,6.53170527]
[1735997882506,0.27533,3633.3,3633.2,0.27533]
[1735997882700,1.26212,3633.4,3633.3,0.27532]
[1735997883004,1.26212,3633.4,3633.2,0.27533]
[1735997883901,1.26212,3633.4,3633.2,0.27532]
[1735997884810,1.26212,3633.4,3633.3,0.27532]
[1735997885813,0.9868,3633.4,3633.3,0.27532]
[1735997886108,0.9868,3633.4,3632.8,6.53170527]
[1735997886414,1.26212,3633.4,3633.3,0.27532]
[1735997886909,0.9868,3633.4,3633.3,0.27532]
[1735997892118,1.0185,3633.6,3633.5,0.27531]
[1735997893514,1.0145,3633.8,3633.2,1.0026]
[1735997893717,3.23166933,3634.2,3634.1,0.27526]
[1735997894916,1.9929,3634.9,3634.1,0.27526]
[1735997894917,1.9929,3634.9,3634.1,4.31442189]
[1735997895123,1.9929,3634.9,3634.8,0.27521]
[1735997896014,3.23166933,3635.2,3634.7,2.21728338]
[1735997896220,3.23166933,3635.2,3635.1,0.27519]
[1735997896420,4.2083,3635.3,3634.7,2.21728338]
[1735997896624,4.2083,3635.3,3635.2,0.27518]
[1735997897727,4.22066933,3635.5,3635.4,0.27516]
[1735997897926,0.989,3635.5,3635.4,0.27516]
[1735997900024,0.989,3635.5,3634.8,4.31442189]
[1735997900220,0.27516,3635.4,3635.3,0.27517]
[1735997900424,0.989,3635.5,3635.3,0.27517]
[1735997900632,40.8,3635.4,3635.3,0.27517]
[1735997901131,0.989,3635.5,3635.4,0.27516]
[1735997902023,0.989,3635.5,3635.0,2.21728338]
[1735997902228,0.989,3635.5,3635.4,0.27516]
[1735997902725,4.1957,3635.7,3635.6,0.27515]
[1735997904529,3.2078,3635.7,3635.6,0.27515]
[1735997905329,0.9445,3636.1,3636.0,0.27512]
[1735997905834,3.2078,3636.3,3636.2,0.2751]
[1735997906129,0.9434,3636.5,3635.8,2.21728338]
[1735997906331,3.2078,3636.7,3635.9,3.2078]
[1735997906523,4.42627,3636.7,3635.9,3.2078]
[1735997906725,4.42627,3636.7,3636.4,0.27509]
[1735997906924,4.42627,3636.7,3635.9,3.2078]
[1735997906925,0.27508,3636.6,3636.0,0.27512]
[1735997907123,0.27508,3636.6,3635.9,3.2078]
[1735997907330,4.42627,3636.7,3636.5,0.27508]
[1735997907533,4.1512,3636.7,3636.5,0.27508]
[1735997907733,4.1512,3636.7,3636.6,0.27507]
[1735997909531,4.42627,3636.7,3636.6,0.27507]
[1735997909928,0.27507,3636.6,3636.5,0.27508]
[1735997910431,4.42627,3636.7,3636.5,0.27508]
[1735997910626,4.42627,3636.7,3636.2,2.9341]
[1735997910627,4.1512,3636.7,3636.2,2.9341]
[1735997910827,4.1512,3636.7,3636.6,0.27507]
[1735997912131,3.2078,3636.7,3636.6,0.27507]
[1735997912328,1.0,3637.3,3637.2,0.27503]
[1735997912523,1.27502,3637.3,3637.1,0.27503]
[1735997913331,1.0,3637.3,3637.2,0.27503]
[1735997917334,1.0,3637.3,3636.7,2.21728338]
[1735997917634,1.0,3637.3,3636.5,3.2078]
[1735997917635,0.27505,3636.9,3636.5,5.42508338]
[1735997917834,0.27506,3636.8,3636.7,0.27506]
[1735997918035,0.27505,3636.9,3636.8,0.27506]
[1735997918740,0.27504,3637.1,3636.9,0.27505]
[1735997919040,0.952,3637.2,3636.5,5.42508338]
[1735997919227,0.27505,3636.9,3636.8,0.27505]
[1735997920340,0.27507,3636.7,3636.6,0.27507]
[1735997921031,0.27507,3636.7,3636.5,5.42508338]
[1735997921032,0.9524,3636.8,3636.5,5.42508338]
[1735997921331,1.0236,3636.6,3636.2,2.21728338]
[1735997921631,0.27509,3636.4,3636.3,0.27509]
[1735997921933,1.0236,3636.6,3636.2,2.21728338]
[1735997921934,4.2314,3636.6,3636.2,2.21728338]
[1735997922229,0.952,3637.2,3637.1,0.27504]
[1735997922430,3.2078,3637.4,3637.3,0.27502]
[1735997923638,3.2078,3637.4,3637.2,0.27502]
[1735997923639,0.27502,3637.3,3637.2,0.27502]
[1735997924838,3.2078,3637.4,3637.0,0.27504]
[1735997924839,0.27504,3637.1,3637.0,0.27504]
[1735997925027,3.2078,3637.4,3636.8,3.2078]
[1735997925234,0.27505,3636.9,3636.8,3.2078]
[1735997925432,4.1997,3637.0,3636.3,2.21728338]
[1735997925636,0.27508,3636.6,3636.5,0.27508]
[1735997927539,0.27507,3636.7,3636.6,0.27507]
[1735997929038,1.9308,3636.8,3636.3,2.21728338]
[1735997929238,0.27508,3636.6,3636.5,0.27508]
[1735997930037,5.1386,3636.8,3636.3,2.21728338]
[1735997930246,5.1386,3636.8,3636.0,5.42508338]
[1735997930534,0.27512,3636.0,3635.9,0.27512]
[1735997930733,0.27512,3636.0,3635.7,2.21728338]
[1735997930734,3.2078,3636.3,3635.8,0.27513]
[1735997930934,0.27513,3635.8,3635.7,0.27514]
[1735997931135,0.27515,3635.7,3635.5,0.27516]
[1735997931333,0.27515,3635.6,3635.5,0.27516]
[1735997931542,1.23275,3635.6,3635.5,0.27516]
[1735997932042,0.9576,3635.6,3635.5,0.27516]
[1735997932943,1.23276,3635.6,3635.4,2.49244338]
[1735997933137,1.23276,3635.6,3635.5,0.27516]
[1735997933339,0.27517,3635.4,3635.2,0.27517]
[1735997933545,0.27518,3635.2,3635.0,0.27519]
[1735997933847,1.22999,3635.1,3634.9,2.21728338]
[1735997934031,0.9548,3635.1,3635.0,0.27519]
[1735997934842,0.9548,3635.1,3634.9,2.21728338]
[1735997935044,1.22999,3635.1,3634.9,2.49248338]
[1735997935238,0.9548,3635.1,3635.0,0.27519]
[1735997937945,1.20237,3635.4,3634.9,2.21728338]
[1735997937946,3.48296,3635.5,3635.3,0.27517]
[1735997938246,0.9441,3635.4,3634.9,2.21728338]
[1735997938448,1.21927,3635.4,3635.2,0.27518]
[1735997938744,0.9441,3635.4,3634.9,2.21728338]
[1735997938946,0.27517,3635.3,3635.1,0.27518]
[1735997939247,0.9441,3635.4,3635.0,0.27519]
[1735997939450,0.27519,3635.1,3635.0,0.27519]
[1735997939749,0.27518,3635.2,3634.9,2.21728338]
[1735997939938,0.27517,3635.3,3635.1,0.27519]
[1735997940342,0.27517,3635.3,3635.2,0.27518]
[1735997940645,0.9441,3635.4,3634.9,2.21728338]
[1735997940846,0.9441,3635.4,3634.9,0.2752]
[1735997940847,0.27517,3635.3,3634.9,0.2752]
[1735997941042,0.9441,3635.4,3634.7,0.27521]
[1735997941043,0.27521,3634.9,3634.7,0.27521]
[1735997941352,0.27519,3635.1,3635.0,0.27519]
[1735997941646,0.27519,3635.2,3635.0,0.27519]
[1735997941835,0.9441,3635.4,3635.0,0.27519]
[1735997942040,0.27519,3635.1,3634.6,5.42508338]
[1735997942241,0.27519,3635.1,3634.9,0.2752]
[1735997942643,0.9441,3635.4,3634.9,0.2752]
[1735997942644,0.9639,3635.0,3634.9,0.2752]
[1735997942949,0.27518,3635.2,3635.0,0.27519]
[1735997943343,0.27519,3635.1,3634.9,0.2752]
[1735997943543,1.23679,3635.1,3634.9,0.2752]
[1735997943744,0.9616,3635.1,3634.9,0.2752]
[1735997943943,0.27519,3635.0,3634.9,0.2752]
[1735997944244,0.9616,3635.1,3635.0,0.27519]
[1735997944750,0.27518,3635.3,3635.2,0.27518]
[1735997944940,1.908,3635.4,3635.3,0.27517]
[1735997944941,2.18317,3635.4,3635.3,0.27517]
[1735997945141,0.27518,3635.3,3635.1,0.27518]
[1735997945341,1.908,3635.4,3634.9,2.21728338]
[1735997945747,2.18317,3635.4,3634.9,2.21728338]
[1735997945946,2.18317,3635.4,3635.2,0.27517]
[1735997946341,0.27517,3635.3,3635.2,0.27517]
[1735997947047,2.18316,3635.4,3635.3,0.27517]
[1735997947242,1.908,3635.4,3635.3,0.27517]
[1735997947448,0.9441,3635.4,3635.3,0.27517]
[1735997948748,0.9441,3635.4,3634.9,2.21728338]
[1735997948749,0.27518,3635.3,3635.1,0.27518]
[1735997948943,0.27518,3635.3,3635.2,0.27518]
[1735997949147,1.21927,3635.4,3635.2,0.27517]
[1735997949944,0.27517,3635.3,3635.2,0.27517]
[1735997951250,0.9441,3635.4,3634.9,2.21728338]
[1735997951551,0.27517,3635.3,3635.2,0.27518]
[1735997951850,0.9441,3635.4,3634.9,2.21728338]
[1735997952152,1.24848,3635.2,3635.1,0.27518]
[1735997952355,0.9733,3635.2,3635.1,0.27518]
[1735997953551,0.9733,3635.2,3634.9,2.21728338]
[1735997953754,1.24848,3635.2,3635.1,0.27519]
[1735997954150,0.9733,3635.2,3635.1,0.27519]
[1735997955555,1.24848,3635.2,3635.1,0.27519]
[1735997957457,0.9733,3635.2,3635.1,0.27519]
[1735997959361,1.24848,3635.2,3635.1,0.27519]
[1735997960867,0.9733,3635.2,3635.1,0.27519]
[1735997963762,1.21927,3635.4,3634.9,2.21728338]
[1735997963971,1.21927,3635.4,3635.3,0.27517]
[1735997966872,1.21926,3635.4,3635.3,0.27517]
[1735997969265,0.9441,3635.4,3634.8,3.2078]
[1735997969466,0.27519,3635.1,3635.0,0.27519]
[1735997969872,0.27519,3635.2,3635.1,0.27518]
[1735997973674,0.9441,3635.4,3634.9,2.21728338]
[1735997973878,1.21927,3635.4,3635.3,0.27517]
[1735997977076,0.27517,3635.3,3635.2,4.58959189]
[1735997977276,0.27517,3635.3,3635.2,4.31442189]
[1735997977679,0.27517,3635.3,3635.2,6.48190961]
[1735997979074,0.68800296,3635.3,3635.2,4.32237647]
[1735997979779,0.68800296,3635.3,3635.2,0.87107647]
[1735997980374,4.99512116,3635.3,3635.2,0.87107647]
[1735997981577,0.41283296,3635.3,3634.9,6.75710961]
[1735997981773,0.27519,3635.0,3634.9,6.75710961]
[1735997982980,3.52371535,3635.0,3634.9,6.75710961]
[1735997983378,3.52371535,3635.0,3634.9,8.97439299]
[1735997983379,3.24852535,3635.0,3634.9,8.97439299]
[1735997984173,2.16551446,3635.0,3634.9,2.21728338]
[1735997984379,2.16551446,3635.0,3634.9,2.49248338]
[1735997985789,3.24852535,3635.1,3634.9,2.49248338]
[1735997985790,2.16551446,3635.1,3635.0,0.27519]
[1735997988889,2.16551446,3635.2,3635.1,0.27519]
[1735997990779,4.56290535,3635.3,3635.0,8.64235199]
[1735997990990,4.56290535,3635.3,3635.2,0.27518]
[1735997991984,4.97572866,3635.3,3635.2,6.75642465]
[1735997992493,4.97572866,3635.3,3635.2,6.48124465]
[1735997993288,0.27518,3635.2,3635.1,6.75642465]
[1735997993883,0.27518,3635.2,3635.1,6.48124465]
[1735997994685,3.93638555,3635.2,3635.1,6.48124465]
[1735997996089,0.41282331,3635.2,3635.0,6.75643465]
[1735997996289,0.27519,3635.1,3635.0,6.75643465]
[1735997997289,3.52369736,3635.1,3635.0,6.75643465]
[1735997997691,3.52369736,3635.1,3635.0,7.75573263]
[1735997999886,3.24850736,3635.1,3635.0,7.75573263]
[1735998000097,3.93654368,3635.1,3635.0,7.75573263]
[1735998001390,3.52369736,3635.1,3635.0,7.48054263]
[1735998001590,3.52369736,3635.1,3635.0,7.75573263]
[1735998001895,3.52369736,3635.1,3635.0,7.48054263]
[1735998002990,3.52369736,3635.1,3635.0,6.48124465]
[1735998004090,4.52299534,3635.1,3635.0,6.48124465]
[1735998004289,4.52299534,3635.1,3634.8,6.48124465]
[1735998004290,0.2752,3634.9,3634.8,6.48124465]
[1735998004694,1.27449798,3634.9,3634.8,6.48124465]
[1735998004884,1.27449798,3634.9,3634.8,4.94114465]
[1735998005297,46.79929798,3634.9,3634.6,8.64235199]
[1735998005491,4.48231798,3634.7,3634.6,6.48815699]
[1735998005992,0.27522,3634.7,3634.6,7.48745497]
[1735998006198,0.4128512,3634.9,3634.6,8.70201495]
[1735998006394,0.4128512,3634.9,3634.8,0.27521]
[1735998006597,1.71501833,3635.0,3634.9,0.2752]
[1735998006893,3.48294,3635.8,3635.4,0.27516]
[1735998006894,12.89857946,3635.8,3635.4,0.27516]
[1735998007197,9.69077946,3635.8,3635.7,0.27514]
[1735998008995,2.16248369,3636.3,3636.2,0.2751]
[1735998009301,2.16248369,3636.3,3636.2,2.48895796]
[1735998010498,3.13158369,3636.8,3636.4,0.27508]
[1735998011001,3.40664369,3636.8,3636.4,0.27508]
[1735998011186,3.13158369,3636.8,3636.2,2.21385796]
[1735998011392,0.27507,3636.7,3636.2,2.48895796]
[1735998012400,4.1769,3636.8,3636.2,2.21385796]
[1735998013391,4.45196,3636.8,3636.3,0.27509]
[1735998013598,0.27507,3636.7,3636.3,0.27509]
[1735998013791,0.27507,3636.7,3636.2,2.21385796]
[1735998014000,0.27507,3636.7,3636.2,2.48895796]
[1735998014901,0.27507,3636.7,3636.3,0.2751]
[1735998016207,4.1769,3636.8,3636.3,0.2751]
[1735998016391,4.1769,3636.8,3636.4,0.27509]
[1735998016795,4.1769,3636.8,3636.5,0.27508]
[1735998017190,4.1769,3636.8,3636.6,0.27507]
[1735998017895,4.1769,3636.8,3636.2,2.21385796]
[1735998017896,3.2078,3636.8,3636.5,2.21385796]
[1735998018302,3.16248369,3637.3,3636.5,2.21385796]
[1735998018501,2.16248369,3637.3,3637.2,2.48888796]
[1735998018703,3.24372554,3637.5,3637.2,2.48888796]
[1735998018704,2.16248369,3637.4,3637.3,0.27502]
[1735998019597,2.16248369,3637.4,3637.2,2.21385796]
[1735998019804,2.16248369,3637.4,3637.2,2.48887796]
[1735998020005,2.16248369,3637.4,3637.2,2.21385796]
[1735998020400,3.2078,3637.7,3636.9,5.10665796]
[1735998020705,0.275,3637.6,3637.3,0.27502]
[1735998020906,3.2078,3637.7,3636.9,5.10665796]
[1735998021207,0.27501,3637.5,3637.2,0.27502]
[1735998021403,0.275,3637.6,3637.3,0.27502]
[1735998021901,0.275,3637.6,3636.9,5.10665796]
[1735998022101,0.275,3637.6,3637.4,0.27501]
[1735998023907,0.27501,3637.5,3637.4,0.27501]
[1735998024103,0.275,3637.6,3637.4,0.27501]
[1735998024405,0.275,3637.6,3636.9,5.10665796]
[1735998024406,3.2078,3637.7,3637.6,0.275]
[1735998024802,3.2078,3637.7,3637.6,1.2159]
[1735998026704,1.0,3637.8,3637.7,0.27499]
[1735998027607,1.25407,3638.0,3637.8,0.27498]
[1735998027799,0.9462,3638.4,3637.8,2.21385796]
[1735998028007,3.2078,3638.5,3638.3,0.27494]
[1735998028202,3.2078,3638.5,3638.1,2.21385796]
[1735998028404,3.2078,3638.5,3638.2,0.9661]
[1735998028603,0.27494,3638.3,3638.2,0.9661]
[1735998028807,0.27494,3638.3,3638.2,1.24105]
[1735998029204,0.27494,3638.3,3638.2,0.9661]
[1735998029403,0.27494,3638.4,3638.0,0.27496]
[1735998029602,0.27496,3638.1,3637.9,0.27497]
[1735998029904,3.2078,3638.5,3638.0,0.27496]
[1735998030110,0.27496,3638.1,3638.0,0.27496]
[1735998030510,0.27496,3638.2,3638.1,0.27496]
[1735998030706,0.27496,3638.1,3637.8,2.21385796]
[1735998031210,3.2078,3638.5,3637.9,0.27497]
[1735998031410,0.27498,3637.9,3637.8,2.48883796]
[1735998032207,0.9637,3638.0,3637.5,3.21725796]
[1735998032401,0.27501,3637.5,3637.3,0.27502]
[1735998032706,0.27502,3637.4,3637.3,0.27502]
[1735998033913,0.27502,3637.3,3637.2,2.48888796]
[1735998034107,3.2078,3637.7,3636.9,2.21385796]
[1735998034306,1.25404,3637.2,3637.1,0.27504]
[1735998034507,0.979,3637.2,3637.1,0.27504]
[1735998034710,0.27501,3637.5,3636.9,2.21385796]
[1735998035011,0.27501,3637.5,3637.3,0.27501]
[1735998035313,0.27501,3637.4,3637.3,0.27501]
[1735998035514,0.27502,3637.3,3637.2,2.48888796]
[1735998035915,3.2078,3637.7,3637.2,2.21385796]